bitfinex/quotes_BTCUSD_20250610
["timestamp","ask_amount","ask_price","bid_price","bid_amount"]
[1749543100149,0.7395684,109420.0,109410.0,0.45145111]
[1749543100341,0.7395684,109420.0,109410.0,0.45999948]
[1749543100542,0.7395684,109420.0,109410.0,0.47709622]
[1749543100746,0.7395684,109420.0,109410.0,0.45786179]
[1749543100977,0.7395684,109420.0,109410.0,0.48350451]
[1749543101407,0.7395684,109420.0,109410.0,0.46854364]
[1749543101579,0.7395684,109420.0,109410.0,0.4770899]
[1749543101814,0.7395684,109420.0,109410.0,0.47708992]
[1749543102025,0.7395684,109420.0,109410.0,0.45300996]
[1749543102231,0.7395684,109420.0,109410.0,0.48349976]
[1749543102425,0.7395684,109420.0,109410.0,0.48069976]
[1749543102927,0.7395684,109420.0,109410.0,0.47429004]
[1749543103118,0.7395684,109420.0,109410.0,0.45719746]
[1749543103272,0.7395684,109420.0,109410.0,0.44865111]
[1749543103466,0.7395684,109420.0,109410.0,0.43262553]
[1749543103671,0.7395684,109420.0,109410.0,0.45612575]
[1749543104186,0.7395684,109420.0,109410.0,0.05612575]
[1749543104576,0.7395684,109420.0,109410.0,0.45612493]
[1749543104795,0.7395684,109420.0,109410.0,0.4475794]
[1749543104998,0.7395684,109420.0,109410.0,0.43903277]
[1749543105268,0.7395684,109420.0,109410.0,0.45612165]
[1749543105408,0.7395684,109420.0,109410.0,0.43204165]
[1749543105615,0.7395684,109420.0,109410.0,0.45612165]
[1749543106019,0.7395684,109420.0,109410.0,0.45612096]
[1749543106315,0.7395684,109420.0,109410.0,0.4497099]
[1749543106527,0.7395684,109420.0,109410.0,0.45611652]
[1749543106929,0.7395684,109420.0,109410.0,0.42408]
[1749543107180,0.7395684,109420.0,109410.0,0.43903037]
[1749543107338,0.7395684,109420.0,109410.0,0.45611652]
[1749543107555,0.7395684,109420.0,109410.0,0.44970922]
[1749543107760,0.7395684,109420.0,109410.0,0.45611649]
[1749543107933,0.7395684,109420.0,109410.0,0.43903034]
[1749543108133,0.7395684,109420.0,109410.0,0.43262304]
[1749543108401,0.7395684,109420.0,109410.0,0.43903032]
[1749543108555,0.7395684,109420.0,109410.0,0.03048728]
[1749543108762,0.7395684,109420.0,109410.0,0.05611641]
[1749543108962,0.7395684,109420.0,109410.0,0.43903032]
[1749543109172,0.7395684,109420.0,109410.0,0.45611641]
[1749543109792,0.7395684,109420.0,109410.0,0.44970913]
[1749543109994,0.7395684,109420.0,109410.0,0.44757459]
[1749543110226,0.7395684,109420.0,109410.0,0.44971047]
[1749543110375,0.7395684,109420.0,109410.0,0.45611808]
[1749543110818,0.7395684,109420.0,109410.0,0.44971047]
[1749543111071,0.7395684,109420.0,109410.0,0.45611808]
[1749543111275,0.7395684,109420.0,109410.0,0.45612116]
[1749543111468,0.7395684,109420.0,109410.0,0.44971509]
[1749543111639,0.7395684,109420.0,109410.0,0.45612386]
[1749543111844,0.7395684,109420.0,109410.0,0.44971509]
[1749543112113,0.7395684,109420.0,109410.0,0.05612386]
[1749543112325,0.7005684,109420.0,109410.0,0.05612386]
[1749543112518,0.7005684,109420.0,109410.0,0.44757883]
[1749543112835,0.7005684,109420.0,109410.0,0.45612386]
[1749543113006,0.7005684,109420.0,109410.0,0.44971509]
[1749543113413,0.7005684,109420.0,109410.0,0.4390338]
[1749543113638,0.7005684,109420.0,109410.0,0.43048877]
[1749543114038,0.7005684,109420.0,109410.0,0.45612386]
[1749543114395,0.7005684,109420.0,109410.0,0.4561242]
[1749543114601,0.7005684,109420.0,109410.0,0.45612514]
[1749543115046,0.7005684,109420.0,109410.0,0.4390344]
[1749543115260,0.7004884,109420.0,109410.0,0.4390344]
[1749543115465,0.7004884,109420.0,109410.0,0.04971611]
[1749543115878,0.7004884,109420.0,109410.0,0.05612514]
[1749543116079,0.7004884,109420.0,109410.0,0.45612761]
[1749543116280,0.7004884,109420.0,109410.0,0.45612805]
[1749543116488,0.6073684,109420.0,109410.0,0.45613387]
[1749543116636,0.6687884,109420.0,109410.0,0.42408]
[1749543116841,0.6687884,109420.0,109410.0,0.43903908]
[1749543117070,0.6687884,109420.0,109410.0,0.43903901]
[1749543117272,0.6847884,109420.0,109410.0,0.43903898]
[1749543117515,0.6847884,109420.0,109410.0,0.45613496]
[1749543118167,0.6847884,109420.0,109410.0,0.45613494]
[1749543118634,0.6847884,109420.0,109410.0,0.44972394]
[1749543118807,0.6847884,109420.0,109410.0,0.44117593]
[1749543119020,0.6847884,109420.0,109410.0,0.05613486]
[1749543119423,0.7010884,109420.0,109410.0,0.45613486]
[1749543119627,0.7010884,109420.0,109410.0,0.45613692]
[1749543119827,0.7010884,109420.0,109410.0,0.44972389]
[1749543120080,0.7010884,109420.0,109410.0,0.44759445]
[1749543120224,0.6620884,109420.0,109410.0,0.43206607]
[1749543120425,0.6620884,109420.0,109410.0,0.44759527]
[1749543120697,0.6620884,109420.0,109410.0,0.40641603]
[1749543120824,0.6620884,109420.0,109410.0,0.03905149]
[1749543121025,0.6620884,109420.0,109410.0,0.05616203]
[1749543121226,0.6620884,109420.0,109410.0,0.45616203]
[1749543121700,0.6620884,109420.0,109410.0,0.43905034]
[1749543121845,0.6620884,109420.0,109410.0,0.45617575]
[1749543122047,0.6620884,109420.0,109410.0,0.45618068]
[1749543122249,0.6620884,109420.0,109410.0,0.43050013]
[1749543122463,0.6620884,109420.0,109410.0,0.45618065]
[1749543122805,0.6620884,109420.0,109410.0,0.45618064]
[1749543122973,0.6620884,109420.0,109410.0,0.45618066]
[1749543123180,0.6620884,109420.0,109410.0,0.43906032]
[1749543123340,0.67662925,109420.0,109410.0,0.45618072]
[1749543123545,0.67662925,109420.0,109410.0,0.05618173]
[1749543123750,0.67662925,109420.0,109410.0,0.03906084]
[1749543123951,0.67662925,109420.0,109410.0,0.05618201]
[1749543124146,0.67662925,109420.0,109410.0,0.05618206]
[1749543124684,0.5689684,109420.0,109410.0,0.05618206]
[1749543124886,0.6620884,109420.0,109410.0,0.03209691]
[1749543125090,0.6620884,109420.0,109410.0,0.05616272]
[1749543125289,0.6457884,109420.0,109410.0,0.05616247]
[1749543125860,0.5526684,109420.0,109410.0,0.05616247]
[1749543126059,0.6457884,109420.0,109410.0,0.05616247]
[1749543126346,0.6457884,109420.0,109410.0,0.05616246]
[1749543126529,0.6616884,109420.0,109410.0,0.05616215]
[1749543126688,0.6457884,109420.0,109410.0,0.04974316]
[1749543126887,0.6457884,109420.0,109410.0,0.05615896]
[1749543127087,0.6457884,109420.0,109410.0,0.03049579]
[1749543127289,0.6457884,109420.0,109410.0,0.05615894]
[1749543127876,0.6457884,109420.0,109410.0,0.45615893]
[1749543128079,0.6457884,109420.0,109410.0,0.45615889]
[1749543128265,0.6457884,109420.0,109410.0,0.4561589]
[1749543128432,0.6457884,109420.0,109410.0,0.43905015]
[1749543128631,0.6457884,109420.0,109410.0,0.45615889]
[1749543128813,0.6457884,109420.0,109410.0,0.42408]
[1749543129016,0.6457884,109420.0,109410.0,0.44974281]
[1749543129693,0.6457884,109420.0,109410.0,0.45615843]
[1749543130527,0.6457884,109420.0,109410.0,0.4561584]
[1749543130732,0.6457884,109420.0,109410.0,0.44974268]
[1749543130949,0.5366684,109420.0,109410.0,0.04760405]
[1749543131151,0.6297884,109420.0,109410.0,0.04619546]
[1749543131287,0.6297884,109420.0,109410.0,0.04619545]
[1749543131506,0.6297884,109420.0,109410.0,0.07185683]
[1749543131727,0.6297884,109420.0,109410.0,0.07185669]
[1749543131928,0.6297884,109420.0,109410.0,0.05615661]
[1749543132137,0.6297884,109420.0,109410.0,0.04974125]
[1749543132292,0.6297884,109420.0,109410.0,0.05615656]
[1749543132823,0.6297884,109420.0,109410.0,0.03049531]
[1749543132991,0.6297884,109420.0,109410.0,0.03263375]
[1749543133355,0.6297884,109420.0,109410.0,0.05615657]
[1749543133566,0.6297884,109420.0,109410.0,0.05615704]
[1749543133697,0.6450884,109420.0,109410.0,0.05615704]
[1749543133894,0.6450884,109420.0,109410.0,0.05615829]
[1749543134100,0.6450884,109420.0,109410.0,0.03263415]
[1749543134311,0.6450884,109420.0,109410.0,0.03904976]
[1749543134519,0.6297884,109420.0,109410.0,0.05615807]
[1749543134716,0.6297884,109420.0,109410.0,0.45615807]
[1749543135381,0.6297884,109420.0,109410.0,0.45615868]
[1749543135587,0.6297884,109420.0,109410.0,0.45615989]
[1749543135785,0.6297884,109420.0,109410.0,0.45616035]
[1749543136194,0.6297884,109420.0,109410.0,0.44974435]
[1749543136340,0.6297884,109420.0,109410.0,0.45616044]
[1749543136745,0.6455884,109420.0,109410.0,0.45615953]
[1749543136952,0.6608884,109420.0,109410.0,0.45615953]
[1749543137405,0.6608884,109420.0,109410.0,0.43905092]
[1749543137578,0.6608884,109420.0,109410.0,0.43905097]
[1749543137791,0.6608884,109420.0,109410.0,0.43049613]
[1749543138007,0.6608884,109420.0,109410.0,0.03049612]
[1749543138374,0.6608884,109420.0,109410.0,0.05616061]
[1749543138574,0.6608884,109420.0,109410.0,0.01497095]
[1749543138790,0.70287025,109420.0,109410.0,0.056162]
[1749543138965,0.70287025,109420.0,109410.0,0.05616257]
[1749543139169,0.70287025,109420.0,109410.0,0.04760779]
[1749543139381,0.70287025,109420.0,109410.0,0.03208334]
[1749543139584,0.70287025,109420.0,109410.0,0.05616285]
[1749543139731,0.70287025,109420.0,109410.0,0.04974571]
[1749543139933,0.70287025,109420.0,109410.0,0.05616215]
[1749543140142,0.70287025,109420.0,109410.0,0.05616207]
[1749543140750,0.67177025,109420.0,109410.0,0.03263544]
[1749543140955,0.5793094,109420.0,109410.0,0.03263544]
[1749543141193,0.5641094,109420.0,109410.0,0.02408]
[1749543141372,0.6297884,109420.0,109410.0,0.0326354]
[1749543141593,0.6297884,109420.0,109410.0,0.04974618]
[1749543141778,0.6297884,109420.0,109410.0,0.05616272]
[1749543142321,0.6297884,109420.0,109410.0,0.45616272]
[1749543142630,0.6297884,109420.0,109410.0,0.44974777]
[1749543142785,0.6297884,109420.0,109410.0,0.45616471]
[1749543142986,0.6297884,109420.0,109410.0,0.43049693]
[1749543143194,0.6297884,109420.0,109410.0,0.44760875]
[1749543143407,0.6297884,109420.0,109410.0,0.45616466]
[1749543143752,0.5366684,109420.0,109410.0,0.46380875]
[1749543143965,0.5366684,109420.0,109410.0,0.47236446]
[1749543144168,0.6297884,109420.0,109410.0,0.47236441]
[1749543144320,0.6297884,109420.0,109410.0,0.47236437]
[1749543144723,0.6297884,109420.0,109410.0,0.44028]
[1749543144923,0.6297884,109420.0,109410.0,0.44883583]
[1749543145153,0.6297884,109420.0,109410.0,0.05739166]
[1749543145368,0.6297884,109420.0,109410.0,0.07236436]
[1749543145734,0.6297884,109420.0,109410.0,0.46380877]
[1749543145939,0.6297884,109420.0,109410.0,0.47236556]
[1749543146142,0.6297884,109420.0,109410.0,0.46594845]
[1749543146360,0.6297884,109420.0,109410.0,0.46381032]
[1749543146564,0.6297884,109420.0,109410.0,0.44669746]
[1749543146763,0.6297884,109420.0,109410.0,0.46381069]
[1749543146964,0.6297884,109420.0,109410.0,0.4723673]
[1749543147375,0.5366684,109420.0,109410.0,0.47236734]
[1749543147578,0.6298284,109420.0,109410.0,0.46381073]
[1749543147782,0.6298284,109420.0,109410.0,0.47236736]
[1749543147958,0.6298284,109420.0,109410.0,0.46594986]
[1749543148202,0.6298284,109420.0,109410.0,0.47236737]
[1749543148404,0.6298284,109420.0,109410.0,0.44028]
[1749543148611,0.6298284,109420.0,109410.0,0.4659499]
[1749543148819,0.6298284,109420.0,109410.0,0.07236737]
[1749543149231,0.6298284,109420.0,109410.0,0.47236867]
[1749543149852,0.6298284,109420.0,109410.0,0.47237385]
[1749543150064,0.6298284,109420.0,109410.0,0.45739672]
[1749543150268,0.6298284,109420.0,109410.0,0.47237377]
[1749543150473,0.6298284,109420.0,109410.0,0.465955]
[1749543150677,0.6298284,109420.0,109410.0,0.47237375]
[1749543150859,0.6298284,109420.0,109410.0,0.47237348]
[1749543151074,0.6298284,109420.0,109410.0,0.47237313]
[1749543151281,0.6298284,109420.0,109410.0,0.46381515]
[1749543151484,0.6298284,109420.0,109410.0,0.45525613]
[1749543151701,0.6298284,109420.0,109410.0,0.47237172]
[1749543151909,0.6298284,109420.0,109410.0,0.45525613]
[1749543152111,0.6298284,109420.0,109410.0,0.44028]
[1749543152322,0.6298284,109420.0,109410.0,0.06381399]
[1749543152564,0.6298284,109420.0,109410.0,0.05525618]
[1749543152795,0.6298284,109420.0,109410.0,0.46381401]
[1749543153007,0.6298284,109420.0,109410.0,0.47237183]
[1749543153232,0.6298284,109420.0,109410.0,0.44883783]
[1749543153478,0.6298284,109420.0,109410.0,0.4552562]
[1749543153737,0.6298284,109420.0,109410.0,0.44028]
[1749543153981,0.6298284,109420.0,109410.0,0.47237186]
[1749543154728,0.6298284,109420.0,109410.0,0.44975349]
[1749543154992,0.6298284,109420.0,109410.0,0.44119976]
[1749543155471,0.6298284,109420.0,109410.0,0.43049992]
[1749543155680,0.6298284,109420.0,109410.0,0.04119979]
[1749543155890,0.6298284,109420.0,109410.0,0.04975968]
[1749543156098,0.6298284,109420.0,109410.0,0.05617962]
[1749543156313,0.6298284,109420.0,109410.0,0.45617962]
[1749543156544,0.6298284,109420.0,109410.0,0.45617967]
[1749543156976,0.6621284,109420.0,109410.0,0.41498117]
[1749543157191,0.67666925,109420.0,109410.0,0.01712135]
[1749543157397,0.67666925,109420.0,109410.0,0.03050077]
[1749543157622,0.70411025,109420.0,109410.0,0.45618412]
[1749543158044,0.70411025,109420.0,109410.0,0.44762294]
[1749543158248,0.70411025,109420.0,109410.0,0.45618414]
[1749543158451,0.70411025,109420.0,109410.0,0.04976358]
[1749543158657,0.70411025,109420.0,109410.0,0.05618447]
[1749543159078,0.70411025,109420.0,109410.0,0.03906208]
[1749543159288,0.70411025,109420.0,109410.0,0.02408]
[1749543159486,0.70411025,109420.0,109410.0,0.05618447]
[1749543160112,0.70411025,109420.0,109410.0,0.04976358]
[1749543160328,0.70411025,109420.0,109410.0,0.03906273]
[1749543160537,0.70411025,109420.0,109410.0,0.04120313]
[1749543160744,0.70411025,109420.0,109410.0,0.03906274]
[1749543160965,0.70411025,109420.0,109410.0,0.01712314]
[1749543161175,0.70411025,109420.0,109390.0,0.46952397]
[1749543161176,0.2010963,109400.0,109390.0,0.46952397]
[1749543161421,0.38601416,109400.0,109390.0,0.52570817]
[1749543161830,0.38601416,109400.0,109390.0,0.49360397]
[1749543162022,0.38601416,109400.0,109390.0,0.50858262]
[1749543162257,0.34701416,109400.0,109390.0,0.50858262]
[1749543162449,0.36529511,109400.0,109390.0,0.12941233]
[1749543162653,0.36529511,109400.0,109390.0,0.12941231]
[1749543162844,0.36529511,109400.0,109390.0,0.15708995]
[1749543163033,0.36529511,109400.0,109390.0,0.54853075]
[1749543163241,0.36529511,109400.0,109390.0,0.55708997]
[1749543163646,0.36529511,109400.0,109390.0,0.52970103]
[1749543163857,0.36529511,109400.0,109390.0,0.5296994]
[1749543164087,0.36529511,109400.0,109390.0,0.51472154]
[1749543164288,0.36529511,109400.0,109390.0,0.49760397]
[1749543164501,0.36529511,109400.0,109390.0,0.52328032]
[1749543164706,0.36529511,109400.0,109390.0,0.5296994]
[1749543165320,0.36529511,109400.0,109390.0,0.55708087]
[1749543165533,0.36529511,109400.0,109390.0,0.5399618]
[1749543165739,0.36529511,109400.0,109390.0,0.55707535]
[1749543165947,0.36529511,109400.0,109390.0,0.50946422]
[1749543166127,0.36529511,109400.0,109390.0,0.54851858]
[1749543166342,0.36529511,109400.0,109390.0,0.55707535]
[1749543167031,0.36529511,109400.0,109390.0,0.55707534]
[1749543167248,0.36529511,109400.0,109390.0,0.54851858]
[1749543167446,0.36529511,109400.0,109390.0,0.5399618]
[1749543167607,0.36529511,109400.0,109390.0,0.54851857]
[1749543167843,0.36529511,109400.0,109390.0,0.55707534]
[1749543168453,0.36529511,109400.0,109390.0,0.53140503]
[1749543168656,0.36529511,109400.0,109390.0,0.55707103]
[1749543168854,0.36529511,109400.0,109390.0,0.53996036]
[1749543169055,0.36529511,109400.0,109390.0,0.55706995]
[1749543169319,0.32629511,109400.0,109390.0,0.53140395]
[1749543169503,0.32629511,109400.0,109390.0,0.55706995]
[1749543169913,0.32629511,109400.0,109390.0,0.55706958]
[1749543170086,0.32629511,109400.0,109390.0,0.55706883]
[1749543170295,0.32629511,109400.0,109390.0,0.55706817]
[1749543170477,0.32629511,109400.0,109390.0,0.53995825]
[1749543170682,0.32629511,109400.0,109390.0,0.53354175]
[1749543170890,0.32629511,109400.0,109390.0,0.55706607]
[1749543171089,0.32629511,109400.0,109390.0,0.53140317]
[1749543171321,0.32629511,109400.0,109390.0,0.55706607]
[1749543171757,0.32629511,109400.0,109390.0,0.55065035]
[1749543171962,0.32629511,109400.0,109390.0,0.55706607]
[1749543172222,0.32629511,109400.0,109390.0,0.53995747]
[1749543172431,0.32629511,109400.0,109390.0,0.54850945]
[1749543172635,0.32629511,109400.0,109390.0,0.52498745]
[1749543172818,0.32629511,109400.0,109390.0,0.54850945]
[1749543173037,0.32629511,109400.0,109390.0,0.55706288]
[1749543173223,0.32629511,109400.0,109390.0,0.53354088]
[1749543173434,0.32629511,109400.0,109390.0,0.55706281]
[1749543174214,0.32629511,109400.0,109390.0,0.54850938]
[1749543174421,0.32629511,109400.0,109390.0,0.55706281]
[1749543174623,0.32629511,109400.0,109390.0,0.54209431]
[1749543174829,0.32629511,109400.0,109390.0,0.55706281]
[1749543175215,0.32629511,109400.0,109390.0,0.5570629]
[1749543175418,0.32629511,109400.0,109390.0,0.55706284]
[1749543175673,0.32629511,109400.0,109390.0,0.55706281]
[1749543175864,0.32629511,109400.0,109390.0,0.54850933]
[1749543176070,0.32629511,109400.0,109390.0,0.55706273]
[1749543176269,0.32629511,109400.0,109390.0,0.53995591]
[1749543176472,0.32629511,109400.0,109390.0,0.4984025]
[1749543176473,0.28729511,109400.0,109390.0,0.4984025]
[1749543176727,0.28729511,109400.0,109390.0,0.52406275]
[1749543177144,0.28729511,109400.0,109390.0,0.54006275]
[1749543177338,0.28729511,109400.0,109390.0,0.53364868]
[1749543177542,0.28729511,109400.0,109390.0,0.54006399]
[1749543178070,0.28729511,109400.0,109390.0,0.52509494]
[1749543178332,0.28729511,109400.0,109390.0,0.54006399]
[1749543178778,0.28729511,109400.0,109390.0,0.54006567]
[1749543179009,0.28729511,109400.0,109390.0,0.51598784]
[1749543179268,0.28729511,109400.0,109390.0,0.54007031]
[1749543179482,0.28729511,109400.0,109390.0,0.50798745]
[1749543179704,0.28729511,109400.0,109390.0,0.54007031]
[1749543179924,0.28729511,109400.0,109390.0,0.53151488]
[1749543180359,0.28729511,109400.0,109390.0,0.51654288]
[1749543180630,0.28729511,109400.0,109390.0,0.53151488]
[1749543180861,0.64239511,109400.0,109390.0,0.47646589]
[1749543181097,0.65869511,109400.0,109390.0,0.01897767]
[1749543181328,0.65869511,109400.0,109390.0,0.06017815]
[1749543181560,0.67323596,109400.0,109390.0,0.02808]
[1749543181784,0.67323596,109400.0,109390.0,0.04306009]
[1749543182005,0.67323596,109400.0,109390.0,0.06018015]
[1749543182239,0.67323596,109400.0,109390.0,0.05618013]
[1749543182472,0.67323596,109400.0,109390.0,0.05618011]
[1749543182704,0.67523596,109400.0,109390.0,0.02408]
[1749543182915,0.67523596,109400.0,109390.0,0.04976009]
[1749543183121,0.67523596,109400.0,109390.0,0.05618011]
[1749543183345,0.56387349,109390.0,109380.0,0.54044]
[1749543183592,0.65567135,109390.0,109380.0,0.56456]
[1749543183811,0.65567135,109390.0,109380.0,0.58168007]
[1749543184251,0.65567135,109390.0,109380.0,0.5902401]
[1749543184474,0.65567135,109390.0,109380.0,0.58168007]
[1749543184698,0.65567135,109390.0,109380.0,0.17952313]
[1749543184934,0.65567135,109390.0,109380.0,0.18807349]
[1749543185158,0.63907135,109390.0,109380.0,0.57952313]
[1749543185381,0.63907135,109390.0,109380.0,0.59021108]
[1749543185382,0.73223135,109390.0,109380.0,0.59021108]
[1749543185616,0.63907135,109390.0,109380.0,0.59021105]
[1749543185837,0.73223135,109390.0,109380.0,0.58807346]
[1749543186103,0.73223135,109390.0,109380.0,0.57952311]
[1749543186295,0.73223135,109390.0,109380.0,0.59021105]
[1749543186502,0.73223135,109390.0,109380.0,0.57311285]
[1749543186741,0.63907135,109390.0,109380.0,0.58808032]
[1749543186996,0.71693135,109390.0,109380.0,0.59663311]
[1749543187205,0.71693135,109390.0,109380.0,0.58166564]
[1749543187429,0.71693135,109390.0,109380.0,0.57952743]
[1749543187644,0.71693135,109390.0,109380.0,0.56456]
[1749543187851,0.71693135,109390.0,109380.0,0.59663307]
[1749543188263,0.71693135,109390.0,109380.0,0.21193307]
[1749543188473,0.71693135,109390.0,109380.0,0.21193283]
[1749543188686,0.71693135,109390.0,109380.0,0.61193262]
[1749543188896,0.71693135,109390.0,109380.0,0.5969654]
[1749543189117,0.71693135,109390.0,109380.0,0.61193262]
[1749543189320,0.71693135,109390.0,109380.0,0.6055181]
[1749543189496,0.71693135,109390.0,109380.0,0.61193262]
[1749543189725,0.71693135,109390.0,109380.0,0.5969654]
[1749543189931,0.71693135,109390.0,109380.0,0.61193256]
[1749543190369,0.71693135,109390.0,109380.0,0.6033799]
[1749543190576,0.71693135,109390.0,109380.0,0.61192178]
[1749543191010,0.71693135,109390.0,109380.0,0.59695963]
[1749543191222,0.71693135,109390.0,109380.0,0.6119218]
[1749543191442,0.71693135,109390.0,109380.0,0.58627236]
[1749543191648,0.71693135,109390.0,109380.0,0.20550672]
[1749543191868,0.71693135,109390.0,109380.0,0.18627167]
[1749543192071,0.71693135,109390.0,109380.0,0.20550671]
[1749543192277,0.71693135,109390.0,109380.0,0.57986]
[1749543192499,0.71693135,109390.0,109380.0,0.61191838]
[1749543192706,0.71693135,109390.0,109380.0,0.59482057]
[1749543192909,0.71693135,109390.0,109380.0,0.57986]
[1749543193112,0.71693135,109390.0,109380.0,0.61191838]
[1749543193363,0.71693135,109390.0,109380.0,0.61191837]
[1749543193795,0.71693135,109390.0,109380.0,0.5884089]
[1749543194002,0.71693135,109390.0,109380.0,0.61191837]
[1749543194209,0.71693135,109390.0,109380.0,0.49347837]
[1749543194660,0.71693135,109390.0,109380.0,0.47637945]
[1749543194871,0.71693135,109390.0,109380.0,0.46996777]
[1749543195104,0.71693135,109390.0,109380.0,0.06996777]
[1749543195316,0.71693135,109390.0,109380.0,0.09347416]
[1749543195520,0.71693135,109390.0,109380.0,0.09347417]
[1749543195751,0.71693135,109390.0,109380.0,0.49347417]
[1749543196383,0.71693135,109390.0,109380.0,0.49347419]
[1749543196594,0.71693135,109390.0,109380.0,0.48706335]
[1749543196801,0.71693135,109390.0,109380.0,0.46142]
[1749543197221,0.71693135,109390.0,109380.0,0.47637861]
[1749543197725,0.74873135,109390.0,109380.0,0.06962641]
[1749543197955,0.74873135,109390.0,109380.0,0.06962426]
[1749543198179,0.74873135,109390.0,109380.0,0.06321404]
[1749543198398,0.74873135,109390.0,109380.0,0.07176112]
[1749543198609,0.74873135,109390.0,109380.0,0.02841028]
[1749543198830,0.74873135,109390.0,109380.0,0.04608]
[1749543199064,0.65557135,109390.0,109380.0,0.07172112]
[1749543199249,0.74873135,109390.0,109380.0,0.07813142]
[1749543199448,0.74873135,109390.0,109380.0,0.06103732]
[1749543199684,0.74873135,109390.0,109380.0,0.07813184]
[1749543199903,0.7632722,109390.0,109380.0,0.04763779]
[1749543200134,0.7632722,109390.0,109380.0,0.04608]
[1749543200346,0.7632722,109390.0,109380.0,0.05462609]
[1749543200565,0.7632722,109390.0,109380.0,0.0717184]
[1749543200803,0.7632722,109390.0,109380.0,0.07171846]
[1749543201221,0.7642722,109390.0,109380.0,0.07171846]
[1749543201656,0.7652722,109390.0,109380.0,0.04608]
[1749543201866,0.7652722,109390.0,109380.0,0.05461931]
[1749543202108,0.7652722,109390.0,109380.0,0.07169794]
[1749543202309,0.7652722,109390.0,109380.0,0.04608]
[1749543202516,0.7652722,109390.0,109380.0,0.05461931]
[1749543202740,0.7652722,109390.0,109380.0,0.04608]
[1749543202953,0.7652722,109390.0,109380.0,0.07169793]
[1749543203164,0.7652722,109390.0,109380.0,0.07169753]
[1749543203379,0.7652722,109390.0,109380.0,0.06315787]
[1749543203580,0.81692186,109390.0,109380.0,0.04608]
[1749543203781,0.81692186,109390.0,109380.0,0.0546192]
[1749543203999,0.81692186,109390.0,109380.0,0.04608]
[1749543204625,0.81692186,109390.0,109380.0,0.022]
[1749543204834,0.84437286,109390.0,109380.0,0.022]
[1749543205273,0.7927232,109390.0,109380.0,0.022]
[1749543207853,0.6995632,109390.0,109380.0,0.022]
[1749543208059,0.7927232,109390.0,109380.0,0.022]
[1749543208473,0.7927232,109390.0,109380.0,0.04765474]
[1749543208682,0.7927232,109390.0,109380.0,0.03055158]
[1749543208887,0.7927232,109390.0,109380.0,0.03910318]
[1749543209307,0.7927232,109390.0,109380.0,0.022]
[1749543209515,0.7927232,109390.0,109380.0,0.03055156]
[1749543209723,0.7927232,109390.0,109380.0,0.04765472]
[1749543209940,0.7927232,109390.0,109380.0,0.04765474]
[1749543210739,0.7927232,109390.0,109380.0,0.03910314]
[1749543211185,0.7927232,109390.0,109380.0,0.04765471]
[1749543211376,0.7927232,109390.0,109380.0,0.04765472]
[1749543211991,0.83659138,109390.0,109380.0,0.04765572]
[1749543212133,0.83659138,109390.0,109380.0,0.04765573]
[1749543212341,0.83659138,109390.0,109380.0,0.022]
[1749543212543,0.7927232,109390.0,109380.0,0.0476606]
[1749543212745,0.7927232,109390.0,109380.0,0.03055353]
[1749543212947,0.7927232,109390.0,109380.0,0.04766059]
[1749543213355,0.7927232,109390.0,109380.0,0.04766055]
[1749543213554,0.7927232,109390.0,109380.0,0.04766053]
[1749543213761,0.7927232,109390.0,109380.0,0.04766054]
[1749543214383,0.7927232,109390.0,109380.0,0.03910702]
[1749543214751,0.7927232,109390.0,109380.0,0.04766492]
[1749543215085,0.7927232,109390.0,109380.0,0.022]
[1749543215286,0.7927232,109390.0,109380.0,0.04766492]
[1749543215683,0.7927232,109390.0,109380.0,0.0476672]
[1749543216144,0.7927232,109390.0,109380.0,0.03911223]
[1749543216350,0.7927232,109390.0,109380.0,0.04766834]
[1749543217370,0.7927232,109390.0,109380.0,0.0540871]
[1749543217907,0.7927232,109390.0,109380.0,0.0476693]
[1749543218130,0.7927232,109390.0,109380.0,0.03055707]
[1749543218339,0.7927232,109390.0,109380.0,0.04767122]
[1749543218555,0.7927232,109390.0,109380.0,0.03055708]
[1749543218794,0.7927232,109390.0,109380.0,0.04767125]
[1749543219211,0.7927232,109390.0,109380.0,0.0305571]
[1749543219420,0.7927232,109390.0,109380.0,0.0391142]
[1749543219622,0.7927232,109390.0,109380.0,0.0476713]
[1749543220229,0.7927232,109390.0,109380.0,0.04768204]
[1749543220435,0.7927232,109390.0,109380.0,0.05410792]
[1749543221052,0.7927232,109390.0,109380.0,0.0369937]
[1749543221267,0.86618373,109390.0,109370.0,0.02408]
[1749543221494,0.20115162,109370.0,109360.0,0.09869835]
[1749543221702,0.41565033,109370.0,109360.0,0.002]
[1749543221919,0.77135033,109370.0,109360.0,0.002]
[1749543222570,0.53202616,109360.0,109350.0,0.02412]
[1749543222780,0.73152487,109360.0,109350.0,0.0246051]
[1749543222982,0.74662487,109360.0,109350.0,0.0246051]
[1749543223192,0.75568795,109360.0,109350.0,0.0246051]
[1749543223824,0.75668795,109360.0,109350.0,0.0246051]
[1749543224029,0.75768795,109360.0,109350.0,0.0246051]
[1749543224239,0.84948581,109360.0,109350.0,0.0246051]
[1749543224445,0.75632581,109360.0,109350.0,0.0246051]
[1749543224653,0.84948581,109360.0,109350.0,0.0246051]
[1749543225286,0.75768795,109360.0,109350.0,0.0246051]
[1749543227621,0.54658457,109350.0,109340.0,0.44608]
[1749543227829,0.74704243,109350.0,109340.0,0.0220886]
[1749543228260,0.76264243,109350.0,109340.0,0.0220886]
[1749543228477,0.76264243,109350.0,109330.0,0.42408]
[1749543228478,0.56260213,109340.0,109330.0,0.42408]
[1749543228691,0.56260213,109340.0,109330.0,0.02422544]
[1749543228692,0.74755999,109340.0,109330.0,0.02422544]
[1749543229433,0.19207885,109330.0,109320.0,0.4176]
[1749543229648,0.39193756,109330.0,109320.0,0.4176485]
[1749543229861,0.41926081,109330.0,109320.0,0.4183485]
[1749543230072,0.32574081,109330.0,109320.0,0.0183485]
[1749543230303,0.41926081,109330.0,109320.0,0.0183485]
[1749543230513,0.41926081,109330.0,109320.0,0.4183485]
[1749543230731,0.32774081,109330.0,109320.0,0.4183485]
[1749543230909,0.42130081,109330.0,109320.0,0.4183485]
[1749543233295,0.76130081,109330.0,109320.0,0.43540002]
[1749543233505,0.76130081,109330.0,109320.0,0.04392578]
[1749543233716,0.76130081,109330.0,109320.0,0.02687426]
[1749543233938,0.76130081,109330.0,109320.0,0.0183485]
[1749543234143,0.76130081,109330.0,109320.0,0.44392578]
[1749543234558,0.66774081,109330.0,109320.0,0.44392107]
[1749543234762,0.76126081,109330.0,109320.0,0.46012107]
[1749543235187,0.76126081,109330.0,109320.0,0.46011165]
[1749543235391,0.76126081,109330.0,109320.0,0.4515906]
[1749543235593,0.76126081,109330.0,109320.0,0.4345485]
[1749543235806,0.76126081,109330.0,109320.0,0.46011165]
[1749543236482,0.76126081,109330.0,109320.0,0.46010422]
[1749543236907,0.76126081,109330.0,109320.0,0.44306955]
[1749543237092,0.76126081,109330.0,109320.0,0.0601005]
[1749543237369,0.76126081,109330.0,109320.0,0.04306583]
[1749543237611,0.76126081,109330.0,109320.0,0.44306583]
[1749543237824,0.76126081,109330.0,109320.0,0.4439005]